fUSD/lending_fUSD_20241107
["ID","MTS","AMOUNT","RATE_DAILY","PERIOD"]
[341601486,1731019841689,-500.0,0.00027397,2]
[341601487,1731019841698,-582.28,0.00027397,2]
[341601488,1731019841708,-500.0,0.00027397,2]
[341601489,1731019841717,-500.0,0.00027397,2]
[341601490,1731019841726,-1000.0,0.00027397,2]
[341601491,1731019841737,-209.17164232,0.00027397,2]
[341601492,1731019841746,-231.35222263,0.00027397,2]
[341601493,1731019841758,-268.64777737,0.00027397,2]
[341601494,1731019841767,-1.87781163,0.00027397,2]
[341601495,1731019841779,-667.02218837,0.00027397,2]
[341601496,1731019841788,-500.0,0.00027397,2]
[341601497,1731019841797,-500.0,0.00027397,2]
[341601498,1731019841806,-500.0,0.00027397,2]
[341601499,1731019841815,-500.0,0.00027397,2]
[341601500,1731019841824,-500.0,0.00027397,2]
[341601501,1731019841834,-500.0,0.00027397,2]
[341601502,1731019841843,-500.0,0.00027397,2]
[341601503,1731019841852,-500.0,0.00027397,2]
[341601504,1731019841862,-500.0,0.00027397,2]
[341601505,1731019841871,-500.0,0.00027397,2]
[341601506,1731019841880,-678.72,0.00027397,2]
[341601507,1731019841889,-500.0,0.00027397,2]
[341601508,1731019841898,-500.0,0.00027397,2]
[341601509,1731019841907,-549.54675119,0.00027397,2]
[341601510,1731019841917,-188.35196631,0.00027397,2]
[341601511,1731019841927,-149.15758485,0.00027397,2]
[341601512,1731019841949,-350.84241515,0.00027397,2]
[341601513,1731019841958,-183.46243241,0.00027397,2]
[341601514,1731019841970,-316.53756759,0.00027397,2]
[341601515,1731019841980,-500.0,0.00027397,2]
[341601516,1731019841989,-500.0,0.00027397,2]
[341601517,1731019841998,-500.0,0.00027397,2]
[341601518,1731019842008,-500.0,0.00027397,2]
[341601519,1731019842018,-715.01,0.00027397,2]
[341601520,1731019842028,-590.93,0.00027397,2]
[341601521,1731019842038,-500.0,0.00027397,2]
[341601522,1731019842049,-500.0,0.00027397,2]
[341601523,1731019842058,-500.0,0.00027397,2]
[341601524,1731019842067,-570.41,0.00027397,2]
[341601525,1731019842076,-615.49,0.00027397,2]
[341601526,1731019842085,-500.0,0.00027397,2]
[341601527,1731019842095,-1.98826748,0.00027397,2]
[341601528,1731019842106,-498.01173252,0.00027397,2]
[341601529,1731019842115,-500.0,0.00027397,2]
[341601530,1731019842124,-515.28256448,0.00027397,2]
[341601531,1731019842135,-155.32743552,0.00027397,2]
[341601532,1731019842144,-182.04656448,0.00027397,2]
[341601533,1731019844044,-500.0,0.00027397,2]
[341601534,1731019844054,-500.0,0.00027397,2]
[341601535,1731019844064,-500.0,0.00027397,2]
[341601536,1731019844074,-500.0,0.00027397,2]
[341601537,1731019844093,-500.0,0.00027397,2]
[341601538,1731019844147,-346.00596719,0.00027397,2]
[341601539,1731019844273,-161.36403281,0.00027397,2]
[341601540,1731019844340,-572.54,0.00027397,2]
[341601541,1731019844428,-500.0,0.00027397,2]
[341601542,1731019844520,-500.0,0.00027397,2]
[341601543,1731019844617,-138.17769008,0.00027397,2]
[341601544,1731019844742,-361.82230992,0.00027397,2]
[341601545,1731019844825,-500.0,0.00027397,2]
[341601546,1731019844948,-338.49318389,0.00027397,2]
[341601547,1731019845029,-161.50681611,0.00027397,2]
[341601548,1731019845041,-242.87672239,0.00027397,2]
[341601549,1731019845052,-257.12327761,0.00027397,2]
[341601550,1731019845062,-129.08760733,0.00027397,2]
[341601551,1731019845127,-522.23239267,0.00027397,2]
[341601552,1731019845138,-87.9769479,0.00027397,2]
[341601553,1731019845149,-412.0230521,0.00027397,2]
[341601554,1731019845159,-1014.95,0.00027397,2]
[341601555,1731019845168,-500.0,0.00027397,2]
[341601556,1731019845179,-500.0,0.00027397,2]
[341601557,1731019845189,-500.0,0.00027397,2]
[341601558,1731019845199,-500.0,0.00027397,2]
[341601559,1731019845208,-500.0,0.00027397,2]
[341601560,1731019845218,-500.0,0.00027397,2]
[341601561,1731019845228,-500.0,0.00027397,2]
[341601562,1731019845237,-500.0,0.00027397,2]
[341601563,1731019845247,-500.0,0.00027397,2]
[341601564,1731019845257,-10.48688244,0.00027397,2]
[341601565,1731019845270,-489.51311756,0.00027397,2]
[341601566,1731019845279,-552.69902153,0.00027397,2]
[341601567,1731019845289,-13.30786091,0.00027397,2]
[341601568,1731019845312,-59.11745833,0.00027397,2]
[341601569,1731019845754,-377.35834796,0.00027397,2]
[341601570,1731019845765,-1213.1863328,0.00027397,2]
[341601571,1731019845775,-500.0,0.00027397,2]
[341601572,1731019845784,-500.0,0.00027397,2]
[341601573,1731019845793,-547.3,0.00027397,2]
[341601574,1731019845802,-500.0,0.00027397,2]
[341601575,1731019845810,-500.0,0.00027397,2]
[341601576,1731019845820,-740.72,0.00027397,2]
[341601577,1731019845830,-500.0,0.00027397,2]
[341601578,1731019845839,-500.0,0.00027397,2]
[341601579,1731019845848,-643.01623814,0.00027397,2]
[341601580,1731019845857,-500.0,0.00027397,2]
[341601581,1731019845866,-706.51,0.00027397,2]
[341601582,1731019845875,-500.0,0.00027397,2]
[341601583,1731019845884,-929.7,0.00027397,2]
[341601584,1731019845893,-633.49,0.00027397,2]
[341601585,1731019845903,-500.0,0.00027397,2]
[341601586,1731019845912,-587.08279166,0.00027397,2]
[341601587,1731019845922,-500.0,0.00027397,2]
[341601588,1731019845933,-500.0,0.00027397,2]
[341601589,1731019845943,-590.88,0.00027397,2]
[341601591,1731019845953,-500.0,0.00027397,2]
[341601592,1731019845962,-568.1,0.00027397,2]
[341601593,1731019845972,-500.0,0.00027397,2]
[341601594,1731019845982,-571.41,0.00027397,2]
[341601595,1731019845991,-500.0,0.00027397,2]
[341601596,1731019846000,-500.0,0.00027397,2]
[341601597,1731019846010,-553.93,0.00027397,2]
[341601598,1731019846020,-500.0,0.00027397,2]
[341601599,1731019846030,-500.0,0.00027397,2]
[341601600,1731019846039,-500.0,0.00027397,2]
[341601601,1731019846049,-1026.28,0.00027397,2]
[341601602,1731019846058,-677.65,0.00027397,2]
[341601603,1731019846067,-500.0,0.00027397,2]
[341601604,1731019846076,-358.39087601,0.00027397,2]
[341601605,1731019846086,-500.0,0.00027397,2]
[341601606,1731019846094,-500.0,0.00027397,2]
[341601607,1731019846104,-300.06681751,0.00027397,2]
[341601608,1731019846113,-500.0,0.00027397,2]
[341601609,1731019846123,-650.57,0.00027397,2]
[341601610,1731019846133,-835.28,0.00027397,2]
[341601611,1731019846142,-500.0,0.00027397,2]
[341601612,1731019846152,-3144.71,0.00027397,2]
[341601613,1731019846162,-500.0,0.00027397,2]
[341601614,1731019846171,-500.0,0.00027397,2]
[341601615,1731019846181,-500.0,0.00027397,2]
[341601616,1731019846191,-500.0,0.00027397,2]
[341601617,1731019846200,-500.0,0.00027397,2]
[341601618,1731019846210,-500.0,0.00027397,2]
[341601619,1731019846220,-500.0,0.00027397,2]
[341601620,1731019846231,-500.0,0.00027397,2]
[341601621,1731019846240,-500.0,0.00027397,2]
[341601622,1731019846250,-500.0,0.00027397,2]
[341601623,1731019846260,-500.0,0.00027397,2]
[341601624,1731019846269,-854.51,0.00027397,2]
[341601625,1731019846279,-500.0,0.00027397,2]
[341601626,1731019846289,-500.0,0.00027397,2]
[341601627,1731019846298,-500.0,0.00027397,2]
[341601628,1731019846308,-500.0,0.00027397,2]
[341601629,1731019846317,-593.16,0.00027397,2]
[341601630,1731019846327,-500.0,0.00027397,2]
[341601631,1731019846337,-151.0,0.00027397,7]
[341601632,1731019846347,-500.0,0.00027397,2]
[341601633,1731019846356,-500.0,0.00027397,2]
[341601634,1731019846366,-500.0,0.00027397,2]
[341601635,1731019846375,-151.0,0.00027397,7]
[341601636,1731019846384,-151.0,0.00027397,7]
[341601637,1731019846394,-606.07,0.00027397,2]
[341601638,1731019846404,-500.0,0.00027397,2]
[341601639,1731019846413,-500.0,0.00027397,2]
[341601640,1731019846423,-151.0,0.00027397,7]
[341601641,1731019846433,-500.0,0.00027397,2]
[341601642,1731019846443,-500.0,0.00027397,2]
[341601643,1731019846453,-504.38,0.00027397,2]
[341601644,1731019846462,-500.0,0.00027397,2]
[341601645,1731019846471,-152.408181,0.00027397,7]
[341601646,1731019846481,-151.0,0.00027397,7]
[341601647,1731019846491,-500.0,0.00027397,2]
[341601648,1731019846501,-500.0,0.00027397,2]
[341601649,1731019846513,-500.0,0.00027397,2]
[341601650,1731019846524,-500.0,0.00027397,2]
[341601651,1731019846534,-500.0,0.00027397,2]
[341601652,1731019846543,-151.0,0.00027397,7]
[341601653,1731019846553,-500.0,0.00027397,2]
[341601654,1731019846563,-500.0,0.00027397,2]
[341601655,1731019846572,-500.0,0.00027397,2]
[341601656,1731019846582,-704.97,0.00027397,2]
[341601657,1731019846594,-652.19,0.00027397,2]
[341601658,1731019846731,-537.22,0.00027397,2]
[341601659,1731019846742,-295.88676522,0.00027397,2]
[341601660,1731019846752,-500.0,0.00027397,2]
[341601661,1731019846762,-500.0,0.00027397,2]
[341601662,1731019846772,-500.0,0.00027397,2]
[341601663,1731019846782,-500.0,0.00027397,2]
[341601664,1731019846791,-500.0,0.00027397,2]
[341601665,1731019846801,-500.0,0.00027397,2]
[341601666,1731019846811,-500.0,0.00027397,2]
[341601667,1731019846821,-500.0,0.00027397,2]
[341601668,1731019846831,-500.0,0.00027397,2]
[341601669,1731019846841,-500.0,0.00027397,2]
[341601670,1731019846851,-151.0,0.00027397,7]
[341601671,1731019846860,-150.557649,0.00027397,2]
[341601672,1731019846870,-500.0,0.00027397,2]
[341601673,1731019846880,-500.0,0.00027397,2]
[341601674,1731019846889,-500.0,0.00027397,2]
[341601675,1731019846899,-500.0,0.00027397,2]
[341601676,1731019846908,-540.5,0.00027397,2]
[341601677,1731019846918,-500.0,0.00027397,2]
[341601678,1731019846927,-825.57,0.00027397,2]
[341601679,1731019846936,-500.0,0.00027397,2]
[341601680,1731019846946,-500.0,0.00027397,2]
[341601681,1731019846955,-500.0,0.00027397,2]
[341601682,1731019846965,-500.0,0.00027397,2]
[341601683,1731019846974,-500.0,0.00027397,2]
[341601684,1731019846984,-500.0,0.00027397,2]
[341601685,1731019846994,-500.0,0.00027397,2]
[341601686,1731019847003,-500.0,0.00027397,2]
[341601687,1731019847012,-500.0,0.00027397,2]
[341601688,1731019847021,-184.56,0.00027397,2]
[341601689,1731019847031,-500.0,0.00027397,2]
[341601690,1731019847041,-500.0,0.00027397,2]
[341601691,1731019847050,-151.0,0.00027397,7]
[341601692,1731019847059,-500.0,0.00027397,2]
[341601693,1731019847069,-151.0,0.00027397,7]
[341601694,1731019847078,-500.0,0.00027397,2]
[341601695,1731019847088,-500.0,0.00027397,2]
[341601696,1731019847097,-500.0,0.00027397,2]
[341601697,1731019847107,-520.34,0.00027397,2]
[341601698,1731019847117,-500.0,0.00027397,2]
[341601699,1731019847127,-718.98,0.00027397,2]
[341601700,1731019847138,-500.0,0.00027397,2]
[341601701,1731019847148,-500.0,0.00027397,2]
[341601702,1731019847158,-500.0,0.00027397,2]
[341601703,1731019847168,-500.0,0.00027397,2]
[341601704,1731019847177,-500.0,0.00027397,2]
[341601705,1731019847187,-771.91,0.00027397,2]
[341601706,1731019847196,-500.0,0.00027397,2]
[341601707,1731019847206,-500.0,0.00027397,2]
[341601708,1731019847216,-500.0,0.00027397,2]
[341601709,1731019847226,-500.0,0.00027397,2]
[341601710,1731019847235,-770.68,0.00027397,2]
[341601711,1731019847245,-500.0,0.00027397,2]
[341601712,1731019847255,-500.0,0.00027397,2]
[341601713,1731019847264,-542.57,0.00027397,2]
[341601714,1731019847273,-500.0,0.00027397,2]
[341601715,1731019847282,-827.09,0.00027397,2]
[341601716,1731019847292,-500.0,0.00027397,2]
[341601717,1731019847301,-500.0,0.00027397,2]
[341601718,1731019847311,-151.0,0.00027397,7]
[341601719,1731019847320,-545.65,0.00027397,2]
[341601720,1731019847330,-526.44362698,0.00027397,2]
[341601721,1731019847339,-500.0,0.00027397,2]
[341601722,1731019847348,-500.0,0.00027397,2]
[341601723,1731019847358,-151.0,0.00027397,7]
[341601724,1731019847368,-500.0,0.00027397,2]
[341601725,1731019847377,-500.0,0.00027397,2]
[341601726,1731019847387,-500.0,0.00027397,2]
[341601727,1731019847396,-1647.56,0.00027397,2]
[341601728,1731019847406,-500.0,0.00027397,2]
[341601729,1731019847416,-1091.08,0.00027397,2]
[341601730,1731019847426,-500.0,0.00027397,2]
[341601731,1731019847437,-500.0,0.00027397,2]
[341601732,1731019847447,-514.67,0.00027397,2]
[341601733,1731019847457,-500.0,0.00027397,2]
[341601734,1731019847466,-500.0,0.00027397,2]
[341601735,1731019847475,-875.76,0.00027397,2]
[341601736,1731019847486,-500.0,0.00027397,2]
[341601737,1731019847496,-500.0,0.00027397,2]
[341601738,1731019847505,-500.0,0.00027397,2]
[341601739,1731019847521,-500.0,0.00027397,2]
[341601740,1731019847530,-500.0,0.00027397,2]
[341601741,1731019847539,-500.0,0.00027397,2]
[341601742,1731019847548,-500.0,0.00027397,2]
[341601743,1731019847559,-500.0,0.00027397,2]
[341601744,1731019847568,-528.99,0.00027397,2]
[341601745,1731019847577,-500.0,0.00027397,2]
[341601746,1731019847587,-500.0,0.00027397,2]
[341601747,1731019847596,-151.0,0.00027397,7]
[341601748,1731019847605,-678.576695,0.00027397,7]
[341601749,1731019847615,-500.0,0.00027397,2]
[341601750,1731019847625,-500.0,0.00027397,2]
[341601751,1731019847634,-500.0,0.00027397,2]
[341601752,1731019847643,-500.0,0.00027397,2]
[341601753,1731019847652,-678.576695,0.00027397,7]
[341601754,1731019847662,-500.0,0.00027397,2]
[341601755,1731019847671,-500.0,0.00027397,2]
[341601756,1731019847684,-500.0,0.00027397,2]
[341601757,1731019847693,-847.38,0.00027397,2]
[341601758,1731019847703,-500.0,0.00027397,2]
[341601759,1731019847712,-262.63,0.00027397,2]
[341601760,1731019847722,-500.0,0.00027397,2]
[341601761,1731019847732,-811.52,0.00027397,2]
[341601762,1731019847741,-151.0,0.00027397,7]
[341601763,1731019847751,-1328.94,0.00027397,2]
[341601764,1731019847760,-500.0,0.00027397,2]
[341601765,1731019847769,-500.0,0.00027397,2]
[341601766,1731019847778,-500.0,0.00027397,2]
[341601767,1731019847788,-500.0,0.00027397,2]
[341601768,1731019847797,-500.0,0.00027397,2]
[341601769,1731019847807,-762.24,0.00027397,2]
[341601770,1731019847816,-618.36,0.00027397,2]
[341601771,1731019847826,-500.0,0.00027397,2]
[341601772,1731019847836,-578.09,0.00027397,2]
[341601773,1731019847845,-500.0,0.00027397,2]
[341601774,1731019847855,-500.0,0.00027397,2]
[341601775,1731019847864,-500.0,0.00027397,2]
[341601776,1731019847874,-500.0,0.00027397,2]
[341601777,1731019847883,-791.36,0.00027397,2]
[341601778,1731019847892,-500.0,0.00027397,2]
[341601779,1731019847902,-853.38,0.00027397,2]
[341601780,1731019847911,-500.0,0.00027397,2]
[341601781,1731019847921,-499.67241833,0.00027397,2]
[341601782,1731019847931,-500.0,0.00027397,2]
[341601783,1731019847941,-500.0,0.00027397,2]
[341601784,1731019847951,-500.0,0.00027397,2]
[341601785,1731019847960,-500.0,0.00027397,2]
[341601786,1731019847970,-500.0,0.00027397,2]
[341601787,1731019847979,-500.0,0.00027397,2]
[341601788,1731019847989,-743.35,0.00027397,2]
[341601789,1731019847999,-500.0,0.00027397,2]
[341601790,1731019848009,-793.33,0.00027397,2]
[341601791,1731019848018,-518.29,0.00027397,2]
[341601792,1731019848028,-500.0,0.00027397,2]
[341601793,1731019848037,-500.0,0.00027397,2]
[341601794,1731019848046,-500.0,0.00027397,2]
[341601795,1731019848056,-500.0,0.00027397,2]
[341601796,1731019848065,-610.57,0.00027397,2]
[341601797,1731019848075,-500.0,0.00027397,2]
[341601798,1731019848084,-500.0,0.00027397,2]
[341601799,1731019848093,-500.0,0.00027397,2]
[341601800,1731019848102,-500.0,0.00027397,2]
[341601801,1731019848112,-500.0,0.00027397,2]
[341601802,1731019848121,-500.0,0.00027397,2]
[341601803,1731019848131,-500.0,0.00027397,2]
[341601804,1731019848140,-1000.87,0.00027397,2]
[341601805,1731019848150,-500.0,0.00027397,2]
[341601806,1731019848160,-500.0,0.00027397,2]
[341601807,1731019848169,-500.0,0.00027397,2]
[341601808,1731019848179,-638.85,0.00027397,2]
[341601809,1731019848188,-500.0,0.00027397,2]
[341601810,1731019848198,-1096.54,0.00027397,2]
[341601811,1731019848207,-500.0,0.00027397,2]
[341601812,1731019848216,-500.0,0.00027397,2]
[341601813,1731019848226,-500.0,0.00027397,2]
[341601814,1731019848235,-500.0,0.00027397,2]
[341601815,1731019848245,-500.0,0.00027397,2]
[341601816,1731019848255,-500.53,0.00027397,2]
[341601817,1731019848265,-500.0,0.00027397,2]
[341601818,1731019848274,-500.0,0.00027397,2]
[341601819,1731019848283,-500.0,0.00027397,2]
[341601820,1731019848293,-500.0,0.00027397,2]
[341601821,1731019848302,-500.0,0.00027397,2]
[341601822,1731019848312,-500.0,0.00027397,2]
[341601823,1731019848321,-500.0,0.00027397,2]
[341601824,1731019848330,-500.0,0.00027397,2]
[341601825,1731019848340,-708.61,0.00027397,2]
[341601826,1731019848349,-500.0,0.00027397,2]
[341601827,1731019848358,-151.0,0.00027397,7]
[341601828,1731019848368,-500.0,0.00027397,2]
[341601829,1731019848377,-500.0,0.00027397,2]
[341601830,1731019848386,-500.0,0.00027397,2]
[341601831,1731019848396,-500.0,0.00027397,2]
[341601832,1731019848405,-541.35,0.00027397,2]
[341601833,1731019848414,-500.0,0.00027397,2]
[341601834,1731019848424,-500.0,0.00027397,2]
[341601835,1731019848437,-151.0,0.00027397,7]
[341601836,1731019848447,-500.0,0.00027397,2]
[341601837,1731019848457,-586.65,0.00027397,2]
[341601838,1731019848466,-934.07,0.00027397,2]
[341601839,1731019848476,-500.0,0.00027397,2]
[341601840,1731019848486,-792.97,0.00027397,2]
[341601841,1731019848496,-151.0,0.00027397,7]
[341601842,1731019848505,-500.0,0.00027397,2]
[341601843,1731019848519,-500.0,0.00027397,2]
[341601844,1731019848528,-1294.1,0.00027397,2]
[341601845,1731019848538,-500.0,0.00027397,2]
[341601846,1731019848548,-500.0,0.00027397,2]
[341601847,1731019848558,-500.0,0.00027397,2]
[341601848,1731019848567,-500.0,0.00027397,2]
[341601849,1731019848577,-500.0,0.00027397,2]
[341601850,1731019848588,-736.04,0.00027397,2]
[341601851,1731019848598,-589.16,0.00027397,2]
[341601852,1731019848607,-500.0,0.00027397,2]
[341601853,1731019848617,-500.0,0.00027397,2]
[341601854,1731019848627,-500.0,0.00027397,2]
[341601855,1731019848637,-500.0,0.00027397,2]
[341601856,1731019848647,-500.0,0.00027397,2]
[341601857,1731019848657,-500.0,0.00027397,2]
[341601858,1731019848667,-500.0,0.00027397,2]
[341601859,1731019848676,-500.0,0.00027397,2]
[341601860,1731019848686,-500.0,0.00027397,2]
[341601861,1731019848695,-500.0,0.00027397,2]
[341601862,1731019848705,-500.0,0.00027397,2]
[341601863,1731019848714,-500.0,0.00027397,2]
[341601864,1731019848724,-427.536247,0.00027397,7]
[341601865,1731019848734,-500.0,0.00027397,2]
[341601866,1731019848743,-500.0,0.00027397,2]
[341601867,1731019848753,-512.35,0.00027397,2]
[341601868,1731019848763,-500.0,0.00027397,2]
[341601869,1731019848772,-500.0,0.00027397,2]
[341601870,1731019848782,-500.0,0.00027397,2]
[341601871,1731019848791,-427.536247,0.00027397,7]
[341601872,1731019848801,-523.31,0.00027397,2]
[341601873,1731019848810,-652.29,0.00027397,2]
[341601874,1731019848820,-500.0,0.00027397,2]
[341601875,1731019848829,-628.32,0.00027397,2]
[341601876,1731019848839,-151.0,0.00027397,7]
[341601877,1731019848848,-602.91,0.00027397,2]
[341601878,1731019848858,-500.0,0.00027397,2]
[341601879,1731019848869,-500.0,0.00027397,2]
[341601880,1731019848878,-500.0,0.00027397,2]
[341601881,1731019848888,-500.0,0.00027397,2]
[341601882,1731019848898,-553.17,0.00027397,2]
[341601883,1731019848907,-500.0,0.00027397,2]
[341601884,1731019848916,-500.0,0.00027397,2]
[341601885,1731019848926,-151.0,0.00027397,7]
[341601886,1731019848935,-2551.58,0.00027397,2]
[341601887,1731019848945,-514.85,0.00027397,2]
[341601888,1731019848954,-500.0,0.00027397,2]
[341601889,1731019848964,-500.0,0.00027397,2]
[341601890,1731019848974,-500.0,0.00027397,2]
[341601891,1731019848983,-500.0,0.00027397,2]
[341601892,1731019848993,-530.29,0.00027397,2]
[341601893,1731019849003,-610.89,0.00027397,2]
[341601894,1731019849012,-500.0,0.00027397,2]
[341601895,1731019849021,-1263.89,0.00027397,2]
[341601896,1731019849031,-500.0,0.00027397,2]
[341601897,1731019849041,-1142.89,0.00027397,2]
[341601898,1731019849050,-590.65888479,0.00027397,2]
[341601899,1731019849059,-190.97752988,0.00027397,2]
[341601900,1731019849087,-309.02247012,0.00027397,2]
[341601901,1731019849096,-151.0,0.00027397,7]
[341601902,1731019849106,-500.0,0.00027397,2]
[341601903,1731019849115,-151.0,0.00027397,7]
[341601904,1731019849125,-500.0,0.00027397,2]
[341601905,1731019849134,-500.0,0.00027397,2]
[341601906,1731019849143,-630.9,0.00027397,2]
[341601907,1731019849153,-151.0,0.00027397,7]
[341601908,1731019849162,-500.0,0.00027397,2]
[341601909,1731019849171,-500.0,0.00027397,2]
[341601910,1731019849182,-500.0,0.00027397,2]
[341601911,1731019849192,-500.0,0.00027397,2]
[341601912,1731019849201,-500.0,0.00027397,2]
[341601913,1731019849212,-500.0,0.00027397,2]
[341601914,1731019849221,-164.207194,0.00027397,7]
[341601915,1731019849230,-500.0,0.00027397,2]
[341601916,1731019849240,-500.0,0.00027397,2]
[341601917,1731019849250,-1274.69,0.00027397,2]
[341601918,1731019849259,-500.0,0.00027397,2]
[341601919,1731019849268,-500.0,0.00027397,2]
[341601920,1731019849607,-500.0,0.00027397,2]
[341601921,1731019849616,-500.0,0.00027397,2]
[341601922,1731019849626,-500.0,0.00027397,2]
[341601923,1731019849637,-500.0,0.00027397,2]
[341601924,1731019849647,-1660.49,0.00027397,2]
[341601925,1731019849656,-500.0,0.00027397,2]
[341601926,1731019849666,-500.0,0.00027397,2]
[341601927,1731019849678,-500.0,0.00027397,2]
[341601928,1731019849687,-500.0,0.00027397,2]
[341601929,1731019849696,-716.03,0.00027397,2]
[341601930,1731019849706,-649.7,0.00027397,2]
[341601931,1731019849716,-151.0,0.00027397,7]
[341601932,1731019849725,-500.0,0.00027397,2]
[341601933,1731019849735,-500.0,0.00027397,2]
[341601934,1731019849745,-500.0,0.00027397,2]
[341601935,1731019849756,-151.0,0.00027397,7]
[341601936,1731019849765,-1251.89,0.00027397,2]
[341601937,1731019849774,-814.91,0.00027397,2]
[341601938,1731019849784,-837.63,0.00027397,2]
[341601939,1731019849793,-500.0,0.00027397,2]
[341601940,1731019849802,-500.0,0.00027397,2]
[341601941,1731019849813,-1545.2,0.00027397,2]
[341601942,1731019849822,-500.0,0.00027397,2]
[341601943,1731019849832,-627.32,0.00027397,2]
[341601944,1731019849842,-500.0,0.00027397,2]
[341601945,1731019849852,-500.0,0.00027397,2]
[341601946,1731019849862,-500.0,0.00027397,2]
[341601947,1731019849872,-736.21,0.00027397,2]
[341601948,1731019849881,-500.0,0.00027397,2]
[341601949,1731019849891,-500.0,0.00027397,2]
[341601950,1731019849900,-500.0,0.00027397,2]
[341601951,1731019849910,-151.0,0.00027397,7]
[341601952,1731019849920,-615.01,0.00027397,2]
[341601953,1731019849932,-781.54,0.00027397,2]
[341601954,1731019849941,-500.0,0.00027397,2]
[341601955,1731019849950,-500.0,0.00027397,2]
[341601956,1731019849960,-698.81,0.00027397,2]
[341601957,1731019849971,-379.8755667,0.00027397,2]
[341601958,1731019849985,-120.1244333,0.00027397,2]
[341601959,1731019849996,-533.65771869,0.00027397,2]
[341601960,1731019850007,-695.95,0.00027397,2]
[341601961,1731019850016,-500.0,0.00027397,2]
[341601962,1731019850027,-151.000001,0.00027397,7]
[341601963,1731019850037,-500.0,0.00027397,2]
[341601964,1731019850046,-500.0,0.00027397,2]
[341601965,1731019850056,-500.0,0.00027397,2]
[341601966,1731019850065,-1251.14,0.00027397,2]
[341601967,1731019850074,-500.0,0.00027397,2]
[341601968,1731019850083,-500.0,0.00027397,2]
[341601969,1731019850092,-139.78442429,0.00027397,2]
[341601970,1731019850115,-360.21557571,0.00027397,2]
[341601971,1731019850125,-1263.30587492,0.00027397,2]
[341601972,1731019850138,-119.89412508,0.00027397,2]
[341601973,1731019850150,-676.17452092,0.00027397,2]
[341601974,1731019850163,-131.40547908,0.00027397,2]
[341601975,1731019850173,-500.0,0.00027397,2]
[341601976,1731019850183,-500.0,0.00027397,2]
[341601977,1731019850192,-191.94363435,0.00027397,2]
[341601978,1731019850203,-315.21565683,0.00027397,2]
[341601979,1731019850213,-85.52327217,0.00027397,7]
[341601980,1731019850370,-211.36943383,0.00027397,7]
[341601981,1731019850379,-540.69,0.00027397,2]
[341601982,1731019850389,-151.0,0.00027397,7]
[341601983,1731019850399,-500.0,0.00027397,2]
[341601984,1731019850408,-621.57,0.00027397,2]
[341601985,1731019850417,-1.82935903,0.00027397,2]
[341601986,1731019850429,-441.82549997,0.00027397,2]